Cogmind - Beta 17 @@@ ROGUE MODE // 2026.07.14 @ 19:18:47 Player: kareds Result: Destroyed by Striker with Compact Linear Accelerator Performance ------------- Evolutions (5) 2500 Regions Visited (11) 2200 Robots Destroyed (98) 490 Value Destroyed (3220) 3220 Prototype IDs (16) 320 Alien Tech Used (0) 0 Bonus (1391) 1391 TOTAL SCORE: 10121 Bonus ------- High Alert Combat Kills 19 Follower Combat Kills 278 Met Warlord at Base 500 MAIN.C Attacked Warlord 500 Warlord Defense Kills 94 Cogmind --------- Core Integrity 0/1000 Matter 300/300 Energy 312/325 System Corruption 4% Temperature Warm (195) Movement Walking (100) Location -5/Warlord Parts ------- > --- POWER (1) -------- Antimatter Reactor > --- PROPULSION (5) --- Armored Medium Treads Armored Medium Treads Myomer Leg Advanced VSS Leg Advanced VSS Leg > --- UTILITY (9) ------ Advanced Heat Sink Advanced Heat Sink Enhanced Optical Array Improved Signal Interpreter Advanced Terrain Scan Processor Improved Targeting Computer Melee Analysis Suite Improved Medium Armor Plating > --- WEAPON (2) ------- Vortex Rifle > --- INVENTORY (5) ---- Micro Fission Core Heavy Laser Vortex Rifle (35) Peak State ------------ > --- POWER ------------ Antimatter Reactor > --- PROPULSION ------- Armored Medium Treads Armored Medium Treads Myomer Leg Advanced VSS Leg Advanced VSS Leg > --- UTILITY ---------- Advanced Heat Sink Advanced Heat Sink Enhanced Optical Array Improved Signal Interpreter Advanced Terrain Scan Processor Improved Targeting Computer Melee Analysis Suite Improved Medium Armor Plating > --- WEAPON ----------- Heavy Laser Vortex Rifle > --- INVENTORY -------- Micro Fission Core Heavy Laser Vortex Rifle [Rating: 84] Favorites ----------- Power Light Nuclear Core Engine Light Angular Momentum Engine Power Core Light Nuclear Core Reactor Antimatter Reactor Propulsion Improved Cesium-ion Thruster Treads Light Treads Leg Aluminum Leg Wheel Compact Wheel Hover Unit Aerolev Unit Flight Unit Improved Cesium-ion Thruster Utility Improved Signal Interpreter Device Advanced Heat Sink Storage Small Storage Unit Processor Improved Signal Interpreter Hackware System Shield Protection Improved Light Armor Plating Weapon Spear Energy Gun Medium Laser Energy Cannon Heavy Particle Cannon Ballistic Gun Gauss Rifle Launcher Missile Launcher Impact Weapon Great Maul Slashing Weapon Phasing Sabre Piercing Weapon Spear Build | -11 -10 -10 -9 -9 -8 -7 -6 -5 -5 -5 -5 ------- Run | Yrd Mat Min Mat Min Mat Fac Fac Fac Upp Upp War Slots Evolved 10 | . . . 2 . 2 2 2 2 . . . Power . | . . . . . . . . . . . . Propulsion 3 | . . . . . 1 2 . . . . . Utility 7 | . . . 2 . 1 . 2 2 . . . Weapon . | . . . . . . . . . . . . Parts Attached 131 | 7 10 . 14 3 17 15 7 27 11 7 13 Power 17 | 1 3 . 3 . 2 1 1 2 2 1 1 Engine 8 | 1 2 . 2 . 1 1 1 . . . . Core 8 | . 1 . 1 . 1 . . 2 2 1 . Reactor 1 | . . . . . . . . . . . 1 Propulsion 48 | 2 2 . 5 . 7 7 1 9 4 3 8 Treads 15 | 2 . . 4 . . 1 1 3 1 1 2 Leg 18 | . 2 . 1 . 3 2 . 3 . 1 6 Wheel 3 | . . . . . . 1 . 1 1 . . Hover 5 | . . . . . 4 . . . . 1 . Flight 7 | . . . . . . 3 . 2 2 . . Utility 41 | 2 1 . 4 2 6 4 4 12 3 1 2 Device 21 | 1 1 . 4 . 2 2 2 7 1 . 1 Storage 5 | 1 . . . 1 1 . . . 2 . . Processor 7 | . . . . . 1 . 1 4 . . 1 Hackware 3 | . . . . . . 2 . 1 . . . Protection 5 | . . . . 1 2 . 1 . . 1 . Artifact . | . . . . . . . . . . . . Weapon 25 | 2 4 . 2 1 2 3 1 4 2 2 2 Energy Gun 7 | 1 . . . . 1 . . 2 1 . 2 Energy Cannon 7 | . 2 . 2 1 . . . 2 . . . Ballistic Gun 5 | 1 1 . . . . 1 . . . 2 . Ballistic Cannon . | . . . . . . . . . . . . Launcher 3 | . 1 . . . 1 1 . . . . . Special Weapon . | . . . . . . . . . . . . Impact Weapon 1 | . . . . . . 1 . . . . . Slashing Weapon 1 | . . . . . . . . . 1 . . Piercing Weapon 1 | . . . . . . . 1 . . . . Special Melee Weapon . | . . . . . . . . . . . . Unidentified Prototypes 6 | . 1 . 1 . 1 1 . 1 . . 1 Corrupted Parts 1 | . . . . . . . . . . . 1 System Corruption 4 | . . . . . . . . . . . 4 Parts Lost 54 | . 4 . 1 2 9 . . 15 11 10 2 Power 4 | . . . . . 1 . . 1 2 . . Propulsion 23 | . 2 . . . 3 . . 8 4 5 1 Utility 16 | . 1 . 1 1 2 . . 5 3 3 . Weapon 11 | . 1 . . 1 3 . . 1 2 2 1 Highest Loss Streak 7 | . 4 . 1 2 4 . . 6 7 6 1 To Critical Strikes . | . . . . . . . . . . . . Average Backups 4 | 2 5 5 5 7 6 4 4 3 3 3 4 Power . | . 1 1 1 . . . . . . . 1 Propulsion 1 | 1 1 . 1 4 2 2 . . . . . Utility 2 | . 2 4 2 2 3 2 4 2 1 . . Weapon 1 | . . . . 1 . . . . 1 2 3 Tool/Special . | . . . . . . . . . . . . Unused Backups 18 | . . . 4 . 1 4 2 2 . . 5 Power 2 | . . . 1 . . . . . . . 1 Propulsion 5 | . . . 2 . 1 2 . . . . . Utility 6 | . . . 1 . . 2 2 1 . . . Weapon 5 | . . . . . . . . 1 . . 4 Tool/Special . | . . . . . . . . . . . . Average Slot Usage (%) 88 | . 94 100 95 98 93 93 97 90 83 70 70 Engine 4 | . 9 . 6 11 4 7 6 2 . . . Core 3 | . 4 14 4 . 2 . . 2 4 5 3 Treads 8 | . 18 . 11 22 2 5 6 8 3 4 5 Leg 6 | . 7 28 10 . 17 7 . 1 5 1 7 Wheel 2 | . . . . . . . 6 3 1 5 3 Flight 5 | . . . . . . 22 20 7 7 . . Device 14 | . 11 14 28 27 18 10 18 16 13 6 5 Storage 4 | . 14 14 11 11 9 2 . . 2 2 . Processor 12 | . . . . . 8 7 7 21 24 23 23 Hackware 4 | . . . . . . 14 13 10 5 . . Protection 2 | . . . . 3 7 . 6 1 . 2 4 Energy Gun 2 | . 11 . . . 2 . . 1 . . 4 Energy Cannon 5 | . 4 28 22 22 12 . . 2 2 . . Ballistic Gun 2 | . 10 . . . . 5 . . . 4 5 Piercing Weapon 1 | . . . . . . . 2 4 5 2 . Peak Build Rating 84 | 7 9 9 19 20 37 46 60 78 73 58 84 Average Rating 41 | 5 7 9 13 19 29 43 55 70 59 48 53 On Entrance 30 | . 7 9 9 19 20 21 45 60 72 58 41 Avg Prop Armor Cover (%) 14 | . . . . . 9 18 14 14 16 16 8 Naked Turns . | . . . . . . . . . . . . Heaviest Build 37 | 14 17 17 28 30 35 20 24 35 18 23 37 Greatest Support 87 | 40 40 20 40 40 51 24 24 87 32 23 81 Greatest Overweight (x) 4 | . 4 . . . 2 . . 1 4 1 1 Average Overweight (x) . | . . . . . . . . . . . . Largest Inventory Capacity 8 | 8 8 8 8 8 8 8 5 5 5 5 5 Average Capacity 6 | 7 8 8 8 8 8 5 5 5 5 5 5 Most Carried 8 | 4 8 5 8 8 8 7 5 5 5 5 5 Average Carried 4 | 2 5 5 5 7 6 4 4 3 3 3 4 Final Capacity 8 | 8 8 8 8 8 8 5 5 5 5 5 5 Final Carried 8 | 4 5 5 8 7 8 3 5 4 3 4 3 Class Distribution -------------------- 41% | Mutant 13% | Scavenger-Mutant 13% | Hacker-Mutant 7% | Scavenger-Assassin 7% | Hacker-Ninja 4% | Assassin 4% | Gladiator 3% | Hacker-Assassin Dominant Class ---------------- Mutant | -10/Materials Mutant | -10/Mines Mutant | -9/Materials Mutant | -9/Mines Mutant | -8/Materials Hacker-Mutant | -7/Factory Hacker-Mutant | -6/Factory Hacker-Ninja | -5/Factory Scavenger-Assassin | -5/Upper Caves Mutant | -5/Upper Caves Mutant | -5/Warlord Resources | -11 -10 -10 -9 -9 -8 -7 -6 -5 -5 -5 -5 ----------- Run | Yrd Mat Min Mat Min Mat Fac Fac Fac Upp Upp War Matter Collected 1947 | 172 133 101 248 47 223 . 175 394 185 107 162 Remotely . | . . . . . . . . . . . . Salvage Created 3366 | 13 296 . 720 159 772 . 153 707 299 234 13 Parts 219 | 3 21 . 53 9 44 . 11 42 20 16 . Haulers Intercepted 3 | . . . 1 . 1 . . 1 . . . Recyclers Shooed 2 | . . . 1 . . . . 1 . . . Parts Field Recycled . | . . . . . . . . . . . . Retrieved Matter . | . . . . . . . . . . . . Parts Self-Destructed 33 | . . . . . . . . . 21 12 . Prevented . | . . . . . . . . . . . . Parts Restored . | . . . . . . . . . . . . Kills | -11 -10 -10 -9 -9 -8 -7 -6 -5 -5 -5 -5 ------- Run | Yrd Mat Min Mat Min Mat Fac Fac Fac Upp Upp War Combat Hostiles Destroyed 64 | . 13 . 12 2 14 . 4 8 6 4 1 Melee 13 | . . . . . . . 1 7 3 2 . Guns 14 | . 9 . . . 1 . . . 1 2 1 Cannons 23 | . . . 11 2 7 . . 1 2 . . AOE 13 | . 4 . . . 6 . 3 . . . . Classes Destroyed 17 | 1 3 . 5 2 3 . . 1 1 . 1 Worker 5 | . . . . . 1 . 2 2 . . . Builder 9 | . 3 . 1 . 4 . . 1 . . . Tunneler 3 | 1 1 . . . . . 1 . . . . Hauler 3 | . . . 1 . 1 . . 1 . . . Recycler 4 | . . . . 1 2 . . 1 . . . Operator 4 | . . . 2 . 1 . 1 . . . . Watcher 5 | . . . 3 . . . 1 1 . . . Swarmer 15 | . 6 . 1 . . . . 2 6 . . Grunt 31 | . 7 . 7 . 12 . 3 . . 2 . Brawler 1 | . . . . . 1 . . . . . . Duelist 1 | . . . 1 . . . . . . . . Protector 1 | . . . . . . . . . . . 1 Sentry 5 | . . . 4 . . . 1 . . . . Demolisher 2 | . . . . 2 . . . . . . . Hunter 4 | . . . . . 1 . . 2 . 1 . Programmer 5 | . . . . . . . . 4 . 1 . Samaritan 3 | . . . . . . . . . 3 . . Best Kill Streak 8 | 1 5 . 4 3 8 . 8 2 5 2 1 Combat Bots Only 5 | . 5 . 3 2 4 . 4 2 5 2 1 Max Kills in Single Turn 4 | 1 3 . 2 1 3 . 4 1 1 1 1 Gunslinging . | . . . . . . . . . . . . Exploded 3 | . 2 . . . 3 . 1 . . . . Melee 1 | . . . . . . . 1 1 1 1 . Uniques/NPCs Destroyed . | . . . . . . . . . . . . Combat | -11 -10 -10 -9 -9 -8 -7 -6 -5 -5 -5 -5 -------- Run | Yrd Mat Min Mat Min Mat Fac Fac Fac Upp Upp War Hostile Shots Fired 739 | . 85 . 63 13 116 51 61 160 100 50 40 Missed 228 | . 24 . 20 . 30 32 34 32 29 13 14 Hits 511 | . 61 . 43 13 86 19 27 128 71 37 26 Melee 4 | . . . . . . . . . . 3 1 Projectile 507 | . 61 . 43 13 86 19 27 128 71 34 25 AOE 18 | . . . . 13 . . . 2 . . 3 Critical Strikes 10 | . 2 . 1 . 1 . 3 2 1 . . Damage Taken 9222 | . 658 . 542 535 1460 215 523 2310 1585 730 664 Core 1659 | . 68 . 79 170 239 27 41 293 462 107 173 Absorbed by Shields . | . . . . . . . . . . . . Regen/Repaired (Parts) 40 | . . . . . . . . . . . 40 Core Remaining (%) 76 | 100 . 72 . 37 56 96 95 . . . . Volleys Fired 205 | 2 52 . 49 8 46 1 6 24 7 7 3 Largest 2 | 2 2 . 2 2 2 1 1 2 1 2 2 Hottest 150 | 70 120 . 150 150 150 25 36 146 100 56 109 Shots Fired 356 | 4 98 . 98 15 81 1 6 27 7 13 6 Gun 124 | 4 84 . . . 8 1 . 5 3 13 6 Cannon 205 | . 4 . 98 15 62 . . 22 4 . . Launcher 27 | . 10 . . . 11 . 6 . . . . Special . | . . . . . . . . . . . . Kinetic 50 | 2 34 . . . . 1 . . . 13 . Thermal 271 | 2 54 . 98 15 70 . . 25 4 . 3 Explosive 27 | . 10 . . . 11 . 6 . . . . Electromagnetic 5 | . . . . . . . . 2 3 . . Entropic 3 | . . . . . . . . . . . 3 Robot Hit Streak 11 | 2 10 . 11 6 7 4 2 6 3 6 5 Robot Miss Streak 9 | 1 5 . 4 2 5 . 1 9 3 2 1 Penetration Max . | . . . . . . . . . . . . Secondary Targets 1 | . . . . . . . . . . 1 . Max Gunslinging Chain 1 | . . . . . . . . . . 1 . Shots Hit Robots 278 | 3 59 . 58 10 44 6 11 49 12 21 5 Core Hits 163 | 2 29 . 26 5 44 . 17 18 10 9 3 Critical Kills 3 | . . . 1 . . . 1 . . 1 . Critical Parts Destroyed . | . . . . . . . . . . . . Critical Strikes 16 | . 3 . 1 . . . 2 6 1 3 . Burn 3 | . 3 . . . . . . . . . . Meltdown 1 | . . . 1 . . . . . . . . Destroy 1 | . . . . . . . . . . 1 . Smash 1 | . . . . . . . 1 . . . . Sever 2 | . . . . . . . . . . 2 . Impale 8 | . . . . . . . 1 6 1 . . Melee Attacks 128 | . . . . . . 6 18 55 35 14 . Impact 23 | . . . . . . 6 17 . . . . Slashing 12 | . . . . . . . . . . 12 . Piercing 93 | . . . . . . . 1 55 35 2 . Sneak Attacks 11 | . . . . . . . 2 6 3 . . Combat Hostiles . | . . . . . . . . . . . . Follow-up Attacks 1 | . . . . . . . . . . 1 . Damage Inflicted 9559 | 29 1316 . 1184 277 2124 296 1474 1691 383 608 177 Guns 1346 | 29 580 . . . 205 30 . 82 39 204 177 Cannons 2889 | . . . 1184 277 902 . . 464 62 . . Explosions 2852 | . 736 . . . 1016 . 1100 . . . . Melee 2471 | . . . . . . 266 374 1145 282 404 . Ramming 1 | . . . . . 1 . . . . . . Kinetic 402 | 16 152 . . . . 30 . . . 204 . Thermal 4519 | 13 725 . 1184 277 1107 . 587 534 62 . 30 Explosive 1968 | . 439 . . . 1016 . 513 . . . . Electromagnetic 51 | . . . . . . . . 12 39 . . Impact 569 | . . . . . . 266 303 . . . . Slashing 373 | . . . . . . . . . . 373 . Piercing 1529 | . . . . . . . 71 1145 282 31 . Entropic 147 | . . . . . . . . . . . 147 Highest Corruption 28 | . . . . . . 1 1 4 19 28 28 Average Corruption 9 | . . . . . . 1 1 3 13 23 7 Corruption Purged . | . . . . . . . . . . . . Corruption Blocked . | . . . . . . . . . . . . Effects 60 | . . . . . . 1 1 8 26 18 6 Message Errors 15 | . . . . . . . 1 3 6 4 1 Matter Fused 8 | . . . . . . . . . 6 2 . Heat Flow Errors 7 | . . . . . . 1 . . 2 . 4 Energy Discharges 8 | . . . . . . . . 2 5 1 . Parts Fused 1 | . . . . . . . . . . 1 . Data Loss (minor) 11 | . . . . . . . . 1 5 5 . Data Loss (major) 6 | . . . . . . . . 1 . 4 1 Misfires 1 | . . . . . . . . 1 . . . Alerts 1 | . . . . . . . . . 1 . . Misdirections 1 | . . . . . . . . . 1 . . Weapon Failures 1 | . . . . . . . . . . 1 . Overload Shots . | . . . . . . . . . . . . Overflow Damage 400 | . 62 . 5 . 50 86 86 111 . . . Projectiles 43 | . . . 5 . 30 . . 8 . . . Explosions 125 | . 62 . . . 20 . 43 . . . . Melee 232 | . . . . . . 86 43 103 . . . Knockbacks 2 | . . . . . . 1 1 . . . . Impact 2 | . . . . . . 1 1 . . . . Kinetic . | . . . . . . . . . . . . Secondary . | . . . . . . . . . . . . Self-Inflicted Damage 112 | . 53 . . . 59 . . . . . . Shots 4 | . 2 . . . 2 . . . . . . Rammed . | . . . . . . . . . . . . Targets Rammed 1 | . . . . . 1 . . . . . . Kicked 1 | . . . . . 1 . . . . . . Crushed . | . . . . . . . . . . . . Highest Temperature 447 | 40 338 . 111 165 447 105 31 202 158 . 208 Average Temperature 85 | 20 81 . 31 89 137 51 16 77 76 . 97 Received Heat Transfer 1743 | . 246 . 222 . 747 48 159 45 30 189 57 Effects 6 | . . . . . 6 . . . . . . Shutdowns 2 | . . . . . 2 . . . . . . Energy Bleed 1 | . . . . . 1 . . . . . . Interference 1 | . . . . . 1 . . . . . . Short Circuit 1 | . . . . . 1 . . . . . . Damage (minor) 1 | . . . . . 1 . . . . . . Siege Activations . | . . . . . . . . . . . . Martial Activations . | . . . . . . . . . . . . Shielding Activations . | . . . . . . . . . . . . Robots Disrupted . | . . . . . . . . . . . . Combat Hostiles . | . . . . . . . . . . . . Robots Corrupted . | . . . . . . . . . . . . Combat Hostiles . | . . . . . . . . . . . . Parts Fried 1 | . . . . . . . 1 . . . . Impact Corruptions 6 | . . . . . . 4 2 . . . . Robots Melted 1 | . . . 1 . . . . . . . . Combat Hostiles 1 | . . . 1 . . . . . . . . Parts Melted 11 | . 4 . 3 . 4 . . . . . . Heat Transferred 7485 | 37 1630 . 2405 407 1782 . 450 661 75 . 38 Parts Sabotaged . | . . . . . . . . . . . . Parts Stolen . | . . . . . . . . . . . . Parts Stripped . | . . . . . . . . . . . . Power Chain Reactions . | . . . . . . . . . . . . Alert | -11 -10 -10 -9 -9 -8 -7 -6 -5 -5 -5 -5 ------- Run | Yrd Mat Min Mat Min Mat Fac Fac Fac Upp Upp War Maximum Alert Level 2 | . 1 . 2 . 1 . 1 . . . . Low Security (%) 73 | 100 63 100 38 100 86 100 23 100 . . . Level 1 24 | . 36 . 43 . 13 . 76 . . . . Level 2 2 | . . . 18 . . . . . . . . Level 3 . | . . . . . . . . . . . . Level 4 . | . . . . . . . . . . . . Level 5 . | . . . . . . . . . . . . High Security . | . . . . . . . . . . . . Max Security . | . . . . . . . . . . . . Peak Influence 445 | 5 316 75 445 169 225 102 374 167 . . . Initial 169 | . . 75 17 169 37 102 . 143 . . . Average 124 | . 134 60 255 129 95 32 233 56 . . . Influence Increases 3182 | 5 535 . 698 58 540 30 518 463 230 100 5 Destroy 0b10 Robot/C 1500 | . 260 . 400 40 280 . 80 160 200 80 . Destroy 0b10 Robot/NC 170 | 5 20 . 35 5 45 . 25 30 . . 5 Destroy Leader 346 | . 50 . 138 10 42 . 22 44 20 20 . Allied During Kill 38 | . . . 28 . . . . . 10 . . Successful Hack 52 | . 14 . . . . . 14 24 . . . Select Force Hacks 50 | . . . . . . . . 50 . . . Disable Machine 330 | . 60 . 60 . 30 . 135 45 . . . Destroy Structure 246 | . 71 . 7 3 68 . 77 20 . . . Partial Spotted 30 | . . . . . . . 15 15 . . . Lose Combat Pursuer 420 | . 60 . 30 . 75 30 150 75 . . . Influence Decreases 3182 | 5 342 148 308 396 412 255 224 689 214 184 5 Entered New Map 789 | . . 118 28 266 60 123 . 151 26 17 . Time Decay 1964 | 5 302 30 230 110 262 132 224 409 138 117 5 Lost Part 389 | . 40 . 10 20 90 . . 129 50 50 . Lost Ally 40 | . . . 40 . . . . . . . . Squads Dispatched 23 | . 1 . 3 . 3 2 6 8 . . . Investigation 3 | . . . . . . 1 . 2 . . . Extermination 6 | . . . . . . 1 2 3 . . . Reinforcement 11 | . 1 . 3 . 3 . 1 3 . . . Assault . | . . . . . . . . . . . . Garrison 3 | . . . . . . . 3 . . . . Intercept . | . . . . . . . . . . . . Searches Triggered . | . . . . . . . . . . . . Construction Impeded 1 | . . . . . 1 . . . . . . Haulers Reinforced 1 | . . . . . . . . 1 . . . Active Scanning Responses . | . . . . . . . . . . . . Cargo Convoy Interrupts . | . . . . . . . . . . . . Stealth | -11 -10 -10 -9 -9 -8 -7 -6 -5 -5 -5 -5 --------- Run | Yrd Mat Min Mat Min Mat Fac Fac Fac Upp Upp War Distress Signals 11 | . 1 . 4 . 4 . . 2 . . . Communications Jammed . | . . . . . . . . . . . . Distress Signals . | . . . . . . . . . . . . Times Spotted 172 | . 19 . 27 2 30 6 18 20 13 5 32 Peak Tracking Total 26 | . 6 . 4 2 10 5 6 5 5 3 26 Tactical Retreats 16 | . 3 . 2 . 2 2 4 3 . . . Traps | -11 -10 -10 -9 -9 -8 -7 -6 -5 -5 -5 -5 ------- Run | Yrd Mat Min Mat Min Mat Fac Fac Fac Upp Upp War Traps Triggered 8 | . 1 . . . 1 2 2 2 . . . Indirectly . | . . . . . . . . . . . . Trap Hack Attempts . | . . . . . . . . . . . . Triggered . | . . . . . . . . . . . . Disarmed . | . . . . . . . . . . . . Reprogrammed . | . . . . . . . . . . . . Reused . | . . . . . . . . . . . . Traps Extracted . | . . . . . . . . . . . . Installed . | . . . . . . . . . . . . Triggered . | . . . . . . . . . . . . Machines | -11 -10 -10 -9 -9 -8 -7 -6 -5 -5 -5 -5 ---------- Run | Yrd Mat Min Mat Min Mat Fac Fac Fac Upp Upp War Machines Disabled 22 | . 4 . 4 . 2 . 9 3 . . . Max in Single Turn 9 | . 1 . 1 . 1 . 9 1 . . . Machines Repaired . | . . . . . . . . . . . . Machines Dismantled . | . . . . . . . . . . . . Machines Sabotaged 1 | . . . . . . . . 1 . . . Overloaded Fab Kills . | . . . . . . . . . . . . Hacking | -11 -10 -10 -9 -9 -8 -7 -6 -5 -5 -5 -5 --------- Run | Yrd Mat Min Mat Min Mat Fac Fac Fac Upp Upp War Machines Accessed 27 | . 3 . 1 . . 4 8 8 . . 3 Terminals 13 | . 3 . 1 . . 3 3 3 . . . Fabricators 5 | . . . . . . 1 2 2 . . . Repair Stations . | . . . . . . . . . . . . Recycling Units 5 | . . . . . . . 3 2 . . . Scanalyzers 1 | . . . . . . . . 1 . . . Garrison Access . | . . . . . . . . . . . . Total Hacks 60 | . 8 . 2 . . 7 22 14 . . 7 Successful 27 | . 3 . 1 . . . 8 8 . . 7 Failed 32 | . 5 . 1 . . 7 14 5 . . . Catastrophic 6 | . . . . . . 2 2 2 . . . Database Lockouts 1 | . . . . . . . . 1 . . . Manual 6 | . 3 . . . . 1 1 1 . . . Terminals 29 | . 8 . 2 . . 5 8 6 . . . Fabricators 12 | . . . . . . 2 6 4 . . . Repair Stations . | . . . . . . . . . . . . Recycling Units 10 | . . . . . . . 8 2 . . . Scanalyzers 2 | . . . . . . . . 2 . . . Garrison Access . | . . . . . . . . . . . . Terminal Hacks 12 | . 3 . 1 . . . . 1 . . 7 Record 1 | . . . . . . . . . . . 1 Robot Analysis 3 | . 2 . . . . . . 1 . . . Prototype ID Bank 6 | . . . 1 . . . . . . . 5 Open Door 1 | . . . . . . . . . . . 1 Recall Reinforcements 1 | . 1 . . . . . . . . . . Fabricator Hacks 4 | . . . . . . . 1 3 . . . Network Status 2 | . . . . . . . 1 1 . . . Build 2 | . . . . . . . . 2 . . . Repair Station Hacks . | . . . . . . . . . . . . Recycling Unit Hacks 8 | . . . . . . . 6 2 . . . Process 1 | . . . . . . . 1 . . . . Report Inventory 3 | . . . . . . . 1 2 . . . Retrieve Matter 3 | . . . . . . . 3 . . . . Retrieve Components 1 | . . . . . . . 1 . . . . Scanalyzer 1 | . . . . . . . . 1 . . . Retrieve Study 1 | . . . . . . . . 1 . . . Garrison Access Hacks . | . . . . . . . . . . . . Unauthorized Hacks 2 | . . . . . . . 1 1 . . . Terminals 2 | . . . . . . . 1 1 . . . Assimilate 1 | . . . . . . . 1 . . . . Sabotage 1 | . . . . . . . . 1 . . . Fabricators . | . . . . . . . . . . . . Repair Stations . | . . . . . . . . . . . . Recycling Units . | . . . . . . . . . . . . Scanalyzers . | . . . . . . . . . . . . Garrison Access . | . . . . . . . . . . . . Data Cores Recovered . | . . . . . . . . . . . . Used . | . . . . . . . . . . . . Hacking Detections 16 | . 3 . 1 . . 4 6 2 . . . Full Trace Events . | . . . . . . . . . . . . Feedback Events . | . . . . . . . . . . . . Feedback Blocked . | . . . . . . . . . . . . Robot Schematics Acquired . | . . . . . . . . . . . . Robots Built . | . . . . . . . . . . . . Authchips . | . . . . . . . . . . . . Time . | . . . . . . . . . . . . Total Robot Build Rating . | . . . . . . . . . . . . Part Schematics Acquired . | . . . . . . . . . . . . Parts Built 4 | . . . . . . . . 4 . . . Authchips . | . . . . . . . . . . . . Time 245 | . . . . . . . . 245 . . . Total Part Build Rating 30 | . . . . . . . . 30 . . . Part Studies Acquired 1 | . . . . . . . . 1 . . . Parts Repaired . | . . . . . . . . . . . . Time . | . . . . . . . . . . . . Parts Recycled . | . . . . . . . . . . . . Recycled Matter 26 | . . . . . . . 26 . . . . Retrieved Matter 26 | . . . . . . . 26 . . . . Retrieved Components 3 | . . . . . . . 3 . . . . Parts Scanalyzed . | . . . . . . . . . . . . Part Schematics Acquired . | . . . . . . . . . . . . Parts Damaged . | . . . . . . . . . . . . Bothacking | -11 -10 -10 -9 -9 -8 -7 -6 -5 -5 -5 -5 ------------ Run | Yrd Mat Min Mat Min Mat Fac Fac Fac Upp Upp War Used RIF Installer . | . . . . . . . . . . . . Robots Hacked . | . . . . . . . . . . . . Non-combat . | . . . . . . . . . . . . Combat . | . . . . . . . . . . . . Robot Hacks Applied . | . . . . . . . . . . . . Relay Couplers Released . | . . . . . . . . . . . . Fabnet Peak Effective % . | . . . . . . . . . . . . Robots Rewired . | . . . . . . . . . . . . Allies Hacked . | . . . . . . . . . . . . Hacks Repelled . | . . . . . . . . . . . . Allies | -11 -10 -10 -9 -9 -8 -7 -6 -5 -5 -5 -5 -------- Run | Yrd Mat Min Mat Min Mat Fac Fac Fac Upp Upp War Total Allies 4 | . . 3 . . . . . . 1 . . Largest Group 3 | . . 3 3 . . . . . 1 . . Highest-Rated Group 180 | . . 40 40 . . . . . 180 . . Highest-Rated Ally 180 | . . 16 16 . . . . . 180 . . Total Orders . | . . . . . . . . . . . . Ally Attacks 42 | . . . 33 . . . . . 9 . . Total Damage 600 | . . . 384 . . . . . 216 . . Kills 12 | . . . 8 . . . . . 4 . . Allies Corrupted . | . . . . . . . . . . . . Allies Melted 2 | . . . . . . . . . . . 2 Intel | -11 -10 -10 -9 -9 -8 -7 -6 -5 -5 -5 -5 ------- Run | Yrd Mat Min Mat Min Mat Fac Fac Fac Upp Upp War Active Infowar (turns) 5662 | 45 662 74 481 234 481 361 597 1030 634 387 676 Optics 2878 | . . . . . . . 151 1030 634 387 676 Sensors 3089 | . 115 74 305 129 447 361 597 820 241 . . Terrain 708 | . . . . . . . . 364 283 61 . Structural 740 | . . . 472 234 34 . . . . . . Seismic 592 | 45 547 . . . . . . . . . . Cloaking 506 | . . . . . . . 203 303 . . . ECM 2 | . . . . . . 2 . . . . . Robot Analysis Total 3 | . 2 . . . . . . 1 . . . Derelict Logs Recovered 1 | . . . . . . . . . 1 . . Drone Launches . | . . . . . . . . . . . . Drone Recoveries . | . . . . . . . . . . . . Exploration | -11 -10 -10 -9 -9 -8 -7 -6 -5 -5 -5 -5 ------------- Run | Yrd Mat Min Mat Min Mat Fac Fac Fac Upp Upp War Turns Passed 5993 | 111 833 74 481 234 575 361 597 1030 634 387 676 Spaces Moved 5026 | 60 440 62 210 130 328 556 855 886 678 256 565 Core 22 | 4 16 . . . . . . . 2 . . Treads 689 | 56 251 . 111 130 25 . . 52 4 60 . Legs 1071 | . 173 62 99 . 187 1 . 122 198 24 205 Wheels 985 | . . . . . . . . 303 150 172 360 Hover 116 | . . . . . 116 . . . . . . Flight 2143 | . . . . . . 555 855 409 324 . . Fastest Speed 29 | 50 120 120 120 160 42 29 54 47 32 100 90 Average Speed 91 | 152 147 120 141 160 102 53 54 84 70 118 110 Slowest Speed 250 | 160 250 120 160 160 240 130 54 240 250 160 115 Overloaded Moves . | . . . . . . . . . . . . Propulsion Burnouts . | . . . . . . . . . . . . Robots Hopped 1 | . . . . . . 1 . . . . . Potential Cave-ins 14 | . . . . . . . . . 11 . 3 Cave-ins Triggered 2 | . . . . . . . . . 2 . . Exploration Rate (%) 40 | 4 66 28 28 39 47 21 20 26 69 54 81 Regions Visited 11 Branch Regions 5 Pre-discovered Areas 1 | . . . . 1 . . . . . . . Known Exits Taken 6 | . . . . . 1 1 1 1 1 1 . Unknown Exits Taken 5 | 1 1 1 1 1 . . . . . . . Scrap Searched 2 | . . 1 . . . . . . 1 . . Spaces Dug 36 | . . . . . . . 11 9 16 . . Terrain Destroyed 261 | . 77 . 4 4 69 . 77 13 16 1 . Melee 35 | . . . . . . . 11 8 16 . . Projectile 35 | . . . 4 4 21 . . 5 . 1 . AOE 191 | . 77 . . . 48 . 66 . . . . Terrain Rammed . | . . . . . . . . . . . . Walls Destroyed . | . . . . . . . . . . . . Machines Disabled . | . . . . . . . . . . . . Actions | -11 -10 -10 -9 -9 -8 -7 -6 -5 -5 -5 -5 --------- Run | Yrd Mat Min Mat Min Mat Fac Fac Fac Upp Upp War Total 5869 | 72 531 61 299 141 483 608 947 1045 766 307 609 Wait 218 | . 16 . 2 . 68 1 45 20 30 20 16 Move 5013 | 59 439 61 209 129 327 553 854 885 677 255 565 Hop 1 | . . . . . . 1 . . . . . Pick Up 54 | 4 4 . 8 . 7 4 6 12 3 4 2 Fast Attach 65 | 7 4 . 3 1 5 8 4 12 7 4 10 Attach 38 | . 3 . 3 1 5 5 1 13 5 2 . Detach 15 | . 2 . 2 . 2 3 . 4 2 . . Swap 50 | . 6 . 11 1 11 2 4 9 . 1 5 Drop 70 | . 5 . 12 1 11 11 9 11 . 2 8 Fire 205 | 2 52 . 49 8 46 1 6 24 7 7 3 Melee 126 | . . . . . . 6 18 55 35 12 . Ram . | . . . . . . . . . . . . Kick 1 | . . . . . 1 . . . . . . Crush . | . . . . . . . . . . . . Escape Stasis 13 | . . . . . . 13 . . . . . Rewire . | . . . . . . . . . . . . Trap . | . . . . . . . . . . . . Miscellaneous . | . . . . . . . . . . . . Route ------- -11/Scrapyard -10/Materials -10/Mines -9/Materials -9/Mines -8/Materials -7/Factory -6/Factory -5/Factory (discovered 2 exits: *Upp x2) -5/Upper Caves (discovered 2 exits: *Upp / *Fac) -5/Upper Caves (discovered 2 exits: *Fac / *War) -5/Warlord (discovered 1 exit: [*Pro]) History --------- Turn | Location | Event 5 | -11/Scrapyard | Discovered new exit (range 16) 112 | -11/Scrapyard | Entered Materials 331 | -10/Materials | Build established: Mutant 700 | -10/Materials | Lost 4 parts (2n1u1w) 924 | -10/Materials | Discovered new exit (range 16) 945 | -10/Materials | Entered Mines 977 | -10/Mines | Assisted by bots powering up and referring to "LRC-V3" 1001 | -10/Mines | Discovered new exit (range 8) 1019 | -10/Mines | Entered Materials 1019 | -9/Materials | Accompanied by 3 allies 1019 | -9/Materials | Evolved 2 slots: Utility x2 1317 | -9/Materials | Discovered new exit (range 14) 1500 | -9/Materials | Entered Mines 1563 | -9/Mines | YI-UF0 nonchalantly dropped a Grenade Launcher on the ground 1581 | -9/Mines | Assembled infested the area 1586 | -9/Mines | Assisted by a Guerilla fighting off Assembled 1637 | -9/Mines | Core integrity fell below 50% 1704 | -9/Mines | Discovered new exit (range 11) 1719 | -9/Mines | Learned location of Storage (-7) 1734 | -9/Mines | Entered Materials 1734 | -8/Materials | Evolved 2 slots: Propulsion x1, Utility x1 2150 | -8/Materials | Lost 3 parts (1n1u1w) 2296 | -8/Materials | Discovered new exit (range 16) 2309 | -8/Materials | Identified exit to Factory 2309 | -8/Materials | Entered Factory 2309 | -7/Factory | Evolved 2 slots: Propulsion x2 2325 | -7/Factory | Lost 4 parts (1n1u2w) 2589 | -7/Factory | Build established: Hacker-Mutant 2642 | -7/Factory | Discovered new exit (range 15) 2660 | -7/Factory | Identified exit to Factory 2670 | -7/Factory | Entered another Factory area 2670 | -6/Factory | Evolved 2 slots: Utility x2 2967 | -6/Factory | Discovered new exit (range 5) 2969 | -6/Factory | Identified exit to Factory 3030 | -6/Factory | Spotted B-75 Beast 3267 | -6/Factory | Entered another Factory area 3267 | -5/Factory | Evolved 2 slots: Utility x2 3334 | -5/Factory | Discovered new exit (range 10) 3339 | -5/Factory | Identified exit to Upper Caves 3405 | -5/Factory | Fabricated Imp. Coolant Injector? 3445 | -5/Factory | Build established: Hacker-Ninja 3446 | -5/Factory | Fabricated Enh. Quantum Rifle? 3461 | -5/Factory | Central database locked down 3611 | -5/Factory | Lost 5 parts (2n3u) 3806 | -5/Factory | Lost 3 parts (1p1n1u) 4064 | -5/Factory | Lost 6 parts (4n1u1w) 4288 | -5/Factory | Discovered exit to Upper Caves (range 5) 4297 | -5/Factory | Entered Upper Caves 4298 | -5/Upper Caves | Encountered a Warlord checkpoint 4446 | -5/Upper Caves | Build established: Scavenger-Assassin 4538 | -5/Upper Caves | Crushed by falling debris 4538 | -5/Upper Caves | System corruption reached 10% 4541 | -5/Upper Caves | Crushed by falling debris 4541 | -5/Upper Caves | Core integrity fell below 50% 4572 | -5/Upper Caves | Lost 4 parts (1p3u) 4671 | -5/Upper Caves | Lost 7 parts (1p4n2w) 4683 | -5/Upper Caves | Learned 8 Factory zone layouts 4739 | -5/Upper Caves | Discovered new exit (range 16) 4871 | -5/Upper Caves | Attracted the attention of an 0b10 checkpoint 4875 | -5/Upper Caves | Identified exit to Upper Caves 4887 | -5/Upper Caves | 7V-RTL showed up to help 4889 | -5/Upper Caves | 7V-RTL revealed a hidden path 4901 | -5/Upper Caves | Identified exit to Factory 4931 | -5/Upper Caves | Entered another Upper Caves area 4974 | -5/Upper Caves | Discovered exit to Factory (range 18) 5147 | -5/Upper Caves | Core integrity fell below 20% 5192 | -5/Upper Caves | Lost 6 parts (3n1u2w) 5303 | -5/Upper Caves | Discovered new exit (range 13) 5317 | -5/Upper Caves | Identified exit to Warlord 5318 | -5/Upper Caves | Entered Warlord 5358 | -5/Warlord | System corruption cleaned by Quarantine Array 5447 | -5/Warlord | Build established: Mutant 5461 | -5/Warlord | Met Warlord 5486 | -5/Warlord | Warlord's base attacked by MAIN.C 5627 | -5/Warlord | Found Prototype Energy Gun 5629 | -5/Warlord | Found Prototype Energy Gun 5629 | -5/Warlord | Identified Vortex Rifle (x2) 5781 | -5/Warlord | Warlord forces counterattacked 5984 | -5/Warlord | Spotted Striker 5986 | -5/Warlord | Spotted Striker 5987 | -5/Warlord | Discovered new exit (range 20) 5994 | -5/Warlord | Destroyed by Striker with Compact Linear Accelerator Last Messages --------------- 05952_ Dropped Enh. Gauss Cannon. 05952_ Dropped Lgt. Fission Core. 05953_ Dropped Mace. 05954_ Acquired Mic. Fission Core. 05956_ Acquired Adv. Heat Sink. 05964_ I-47 Archangel destroyed. 05968_ Acquired 40 matter. 05975_ The unstable cave ceiling collapses. 05976_ ANNOUNCEMENT: MAIN.C reinforcements approaching through caves, arriving soon. 05986_ ANNOUNCEMENT: Detected 2 Grunt squads, 1 Demolisher squad, 1 Mixed squad, with prototype support. 05986_ Hvy. Laser destroyed. 05987_ EXIT=FOUND 05988_ The unstable cave ceiling collapses. 05990_ Knocked back. 05992_ The unstable cave ceiling collapses. 05993_ System corrupted: Heat flow error (+250). 05994_ The unstable cave ceiling collapses. Map ----- +----------------------------------------------------+ | | | ???????????????????????????????????? | | ???????????????????????????????????? | | ???????????????????????????????????? | | ???????????????????????????????????? | | ???????????????????????????????????? | | ???????????????????????????????????? | | ???????????????????????????????????? | | ???????????????????????????????????? | | ???????????????????????????????????? | | ???????????????????????????????????? | | ???????????????????????????????????? | | ???????????????????????????????????? | | ????????????## ????????????####????? | | ???????????## ???????????? ###??? | | ???????????# ??????????? ##?? | | ???????????? ??????????? < #?? | | ???????????? ????????? ??? | | ????????????? #???????? ???? | | ?????????????? ???????? #???? | | ??????????????? #??????? #???? | | ???????????????# ??????? #????? | | ????????????????# ????### #?????? | | ????????????????# ##### #?????? | | ????????????????# % ???###?? | | ##???????????????# # # @##??? ##? | | ""#???????????????# #?? #? | | ""#???????????????## ## #? | | ""#????????????????# K " "#? | | ""#????????????##??# l # "#? | | ""##?????????### ### ! #? "#? | | ""!####??????# # % =%= ;#""%= "# | | ""!==%######### # #b ; "! "## | | ""=!% "!=[ """ g ""#? | | ""%=*[![%*"" "" # K " | | [!![%%%%=%!%=!= = " | | =[%[[=%[=%[!%%[! ! = /]/ ;; #### | | !^%%%[%=[%%%=[ ] !! ;#; #??? | | =%!*[%=[%!%=[%=[ %= ; ; " #? | | ""%==%!*=!!%"" " = * ###; "" # | | ""*=[*[=!%==""""" # !* ###; " # | | ""[=["############# =[ = ## # " # | | ""#####???????????# # # " # | | ""#???????????????# dg d # "## | | ""#???????????????# g ###? | | ""#???????????????# #??? | | ""#???????????????" ##### ##??? | | ""#???????????????" #???## #???? | | ??????????????????" ""????# #???? | | ??????????????????" " ????## ##??? | +----------------------------------------------------+ Best States ------------- Heat Dissipation 78 Energy Generation 21 Energy Capacity 560 Matter Stores 300 Matter Capacity 300 Sight Range 22 Robot Scan Range 16 Terrain Scan Range 20 Terrain Scan Density 210 Cloak Strength 2 Additional Mass Support 9 Armor Coverage 225 Phase Shifting 5 Evasion (%) 64 Targeting Accuracy 6 Melee Accuracy 5 Target Analysis 6 Recoil Reduction 3 Offensive Hacking 10 Defensive Hacking 20 Trap Extractor Capacity 6 Item Schematics ----------------- None Robot Schematics ------------------ None Fabricated ------------ Imp. Coolant Injector | x2 | -5/Factory | Preloaded Enh. Quantum Rifle | x2 | -5/Factory | Preloaded Repaired ---------- Nothing Studied --------- Nuclear Pulse Thruster | -5/Factory | Hacked Alien Tech Used ----------------- None Achievements -------------- None Challenges ------------ None Game ------ Seed ReflexDeepInterrupter Manual? 0 Play Time 01:15:42 Cumulative 72.1 hours Start 2026.07.13 @ 20:03:52 End 2026.07.14 @ 19:18:47 Sessions 5 Manual Loads 0 Difficulty Rogue Special Mode None Game No. 82 Rogue 66 Adventurer 16 Explorer 0 Win Type - Total 1 Types 1/0/0/0/0/0/0/0/0/0 Lore% 54 Gallery% 50 Achievement% 35 Wizard Run 0 Options --------- Layout 1 ASCII 0 Keyboard 1 Movement Vi Keybinds 0 Fullscreen 1 Font 24/Tamsyn Map View 50x35 Zoom Use 0% Tactical HUD 1 Map Filters NONE Filters NONE Steam 1 RUN: 053cb461-ba5b-436b-962d-430f4c7bc15f